Cogmind - Beta 16 @@@ ROGUE MODE // 2025.11.11 @ 04:07:52 Player: shapeshifter Result: Self-destructed Performance ------------- Evolutions (0) 0 Regions Visited (4) 800 Robots Destroyed (24) 120 Value Destroyed (501) 501 Prototype IDs (0) 0 Alien Tech Used (0) 0 Bonus (0) 0 TOTAL SCORE: 1421 Bonus ------- None Cogmind --------- Core Integrity 121/250 Matter 257/300 Energy 250/250 System Corruption 3% Temperature Cool (0) Movement Rolling (80) Location -9/Mines Parts ------- > --- POWER (1) -------- Ion Engine > --- PROPULSION (2) --- Wheel Wheel > --- UTILITY (2) ------ Cooling System Medium Storage Unit > --- WEAPON (2) ------- Particle Gun > --- INVENTORY (10) --- Large Storage Unit High-capacity Storage Unit Huge Storage Unit Experimental Sensor Array Seismic Detector Grenade Launcher Makeshift Spear Peak State ------------ > --- POWER ------------ Ion Engine > --- PROPULSION ------- Light Treads Light Treads > --- UTILITY ---------- Medium Storage Unit Seismic Detector > --- WEAPON ----------- Medium Laser Makeshift Spear > --- INVENTORY -------- Ion Engine Wheel Wheel Improved Heat Sink High-capacity Storage Unit Huge Storage Unit Particle Gun [Rating: 11] Favorites ----------- Power Ion Engine Engine Ion Engine Propulsion Light Treads Treads Light Treads Wheel Wheel Utility Small Storage Unit Device Seismic Detector Storage Small Storage Unit Weapon Medium Laser Energy Gun Medium Laser Ballistic Gun Assault Rifle Launcher Grenade Launcher Piercing Weapon Makeshift Spear Build | -11 -10 -10 -10 -9 ------- Run | Yrd Mat Min Exi Min Slots Evolved . | . . . . . Power . | . . . . . Propulsion . | . . . . . Utility . | . . . . . Weapon . | . . . . . Parts Attached 21 | 7 1 3 3 7 Power 3 | 1 . 1 . 1 Engine 3 | 1 . 1 . 1 Core . | . . . . . Reactor . | . . . . . Propulsion 5 | 2 . 1 . 2 Treads 3 | 2 . 1 . . Leg . | . . . . . Wheel 2 | . . . . 2 Hover . | . . . . . Flight . | . . . . . Utility 7 | 2 . 1 2 2 Device 3 | 1 . . . 2 Storage 4 | 1 . 1 2 . Processor . | . . . . . Hackware . | . . . . . Protection . | . . . . . Artifact . | . . . . . Weapon 6 | 2 1 . 1 2 Energy Gun 3 | 1 1 . . 1 Energy Cannon . | . . . . . Ballistic Gun 1 | 1 . . . . Ballistic Cannon . | . . . . . Launcher 1 | . . . . 1 Special Weapon . | . . . . . Impact Weapon . | . . . . . Slashing Weapon . | . . . . . Piercing Weapon 1 | . . . 1 . Special Melee Weapon . | . . . . . Unidentified Prototypes . | . . . . . Parts Lost 6 | . . 1 . 5 Power 2 | . . 1 . 1 Propulsion 2 | . . . . 2 Utility . | . . . . . Weapon 2 | . . . . 2 Highest Loss Streak 4 | . . 1 . 4 To Critical Strikes . | . . . . . Average Backups 7 | 3 7 7 7 6 Power . | . 1 1 1 . Propulsion 1 | 1 2 2 2 . Utility 3 | . 3 4 2 3 Weapon 1 | . . . 2 1 Tool/Special . | . . . . . Unused Backups 5 | . . . 2 3 Power . | . . . . . Propulsion . | . . . . . Utility 5 | . . . 2 3 Weapon . | . . . . . Tool/Special . | . . . . . Average Slot Usage (%) 88 | . 96 81 82 89 Engine 12 | . 13 7 14 13 Treads 20 | . 25 16 28 10 Wheel 3 | . . . . 16 Device 14 | . 14 14 14 14 Storage 14 | . 14 14 14 14 Energy Gun 18 | . 14 28 10 18 Ballistic Gun 4 | . 11 . . . Peak Build Rating 11 | 7 8 8 10 11 Average Rating 7 | 5 7 6 6 9 On Entrance 5 | . 7 6 8 7 Avg Prop Armor Cover (%) . | . . . . . Naked Turns . | . . . . . Heaviest Build 21 | 15 15 15 20 21 Greatest Support 40 | 40 40 40 40 40 Greatest Overweight (x) . | . . . . . Average Overweight (x) . | . . . . . Largest Inventory Capacity 25 | 8 8 8 25 10 Average Capacity 8 | 7 8 8 8 10 Most Carried 8 | 6 8 8 8 8 Average Carried 7 | 3 7 7 7 6 Final Capacity 10 | 8 8 8 10 10 Final Carried 8 | 5 7 8 6 7 Class Distribution -------------------- 100% | Mutant Dominant Class ---------------- Mutant | -10/Materials Mutant | -10/Mines Mutant | -10/Exiles Mutant | -9/Mines Resources | -11 -10 -10 -10 -9 ----------- Run | Yrd Mat Min Exi Min Matter Collected 605 | 291 72 64 . 178 Remotely . | . . . . . Salvage Created 650 | 126 275 37 . 212 Parts 42 | 4 21 4 . 13 Haulers Intercepted . | . . . . . Recyclers Shooed . | . . . . . Parts Field Recycled . | . . . . . Retrieved Matter . | . . . . . Parts Self-Destructed . | . . . . . Prevented . | . . . . . Parts Restored . | . . . . . Kills | -11 -10 -10 -10 -9 ------- Run | Yrd Mat Min Exi Min Combat Hostiles Destroyed 19 | . 8 3 . 8 Melee 1 | . . . . 1 Guns 13 | . 8 3 . 2 AOE 4 | . . . . 4 Classes Destroyed 6 | 2 4 . . . Worker 1 | . 1 . . . Tunneler 1 | 1 . . . . Recycler 1 | 1 . . . . Watcher 2 | . 2 . . . Swarmer 10 | . 4 3 . 3 Grunt 9 | . 4 . . 5 Best Kill Streak 6 | 1 5 3 . 6 Combat Bots Only 6 | . 3 3 . 6 Max Kills in Single Turn 2 | 1 2 1 . 2 Gunslinging 1 | . 1 . . . Exploded 2 | . . . . 2 Melee 1 | . . . . 1 Uniques/NPCs Destroyed . | . . . . . Combat | -11 -10 -10 -10 -9 -------- Run | Yrd Mat Min Exi Min Hostile Shots Fired 105 | . 41 8 . 56 Missed 28 | . 13 3 . 12 Hits 77 | . 28 5 . 44 Projectile 77 | . 28 5 . 44 Critical Strikes 3 | . 3 . . . Damage Taken 871 | . 319 39 . 513 Core 129 | . 22 23 . 84 Absorbed by Shields . | . . . . . Core Remaining (%) 100 | 100 . . . . Volleys Fired 60 | 7 27 5 . 21 Largest 2 | 2 2 2 . 2 Hottest 115 | 70 70 90 . 115 Shots Fired 107 | 14 51 11 . 31 Gun 103 | 14 51 11 . 27 Cannon . | . . . . . Launcher 4 | . . . . 4 Special . | . . . . . Kinetic 31 | 7 24 . . . Thermal 63 | 7 27 6 . 23 Explosive 4 | . . . . 4 Electromagnetic 9 | . . 5 . 4 Robot Hit Streak 10 | 2 9 1 . 10 Robot Miss Streak 3 | 2 2 2 . 3 Penetration Max . | . . . . . Secondary Targets 3 | . 1 1 . 1 Max Gunslinging Chain 1 | . 1 1 . 1 Shots Hit Robots 64 | 8 33 4 . 19 Core Hits 35 | 3 18 3 . 11 Critical Kills . | . . . . . Critical Parts Destroyed . | . . . . . Critical Strikes 4 | 2 . . . 2 Burn 4 | 2 . . . 2 Melee Attacks 3 | . . . . 3 Impact . | . . . . . Slashing . | . . . . . Piercing 3 | . . . . 3 Sneak Attacks . | . . . . . Combat Hostiles . | . . . . . Follow-up Attacks . | . . . . . Damage Inflicted 1105 | 98 426 47 . 534 Guns 829 | 98 426 47 . 258 Cannons . | . . . . . Explosions 246 | . . . . 246 Melee 30 | . . . . 30 Ramming . | . . . . . Kinetic 286 | 48 238 . . . Thermal 493 | 50 188 37 . 218 Explosive 246 | . . . . 246 Electromagnetic 50 | . . 10 . 40 Impact . | . . . . . Slashing . | . . . . . Piercing 30 | . . . . 30 Highest Corruption 3 | . 3 3 3 3 Average Corruption 2 | . 2 3 3 3 Corruption Purged . | . . . . . Corruption Blocked . | . . . . . Effects 25 | . 1 11 5 8 Message Errors 8 | . 1 4 1 2 Matter Fused 8 | . . 4 3 1 Heat Flow Errors 3 | . . . 1 2 Energy Discharges 3 | . . 2 . 1 Data Loss (minor) 2 | . . . . 2 Misfires 1 | . . 1 . . Overload Shots . | . . . . . Overflow Damage . | . . . . . Projectiles . | . . . . . Explosions . | . . . . . Melee . | . . . . . Knockbacks . | . . . . . Impact . | . . . . . Kinetic . | . . . . . Secondary . | . . . . . Self-Inflicted Damage 8 | . . . . 8 Shots 1 | . . . . 1 Rammed . | . . . . . Targets Rammed . | . . . . . Kicked . | . . . . . Crushed . | . . . . . Highest Temperature 281 | 36 153 75 88 281 Average Temperature 59 | 15 37 34 50 110 Received Heat Transfer 402 | . 201 . . 201 Effects 1 | . . . . 1 Interference 1 | . . . . 1 Siege Activations . | . . . . . Martial Activations . | . . . . . Shielding Activations . | . . . . . Robots Disrupted . | . . . . . Combat Hostiles . | . . . . . Robots Corrupted . | . . . . . Combat Hostiles . | . . . . . Parts Fried . | . . . . . Impact Corruptions . | . . . . . Robots Melted 1 | . . . . 1 Combat Hostiles 1 | . . . . 1 Parts Melted 3 | . . 1 . 2 Heat Transferred 1702 | 296 555 111 . 740 Parts Sabotaged . | . . . . . Parts Stolen . | . . . . . Parts Stripped . | . . . . . Power Chain Reactions . | . . . . . Alert | -11 -10 -10 -10 -9 ------- Run | Yrd Mat Min Exi Min Maximum Alert Level . | . . . . . Low Security (%) 100 | 100 100 100 . 100 Level 1 . | . . . . . Level 2 . | . . . . . Level 3 . | . . . . . Level 4 . | . . . . . Level 5 . | . . . . . High Security . | . . . . . Max Security . | . . . . . Peak Influence 109 | 5 81 83 . 109 Initial 12 | . . 12 . . Average 19 | . 21 12 . 29 Influence Increases 556 | 10 234 93 . 219 Destroy 0b10 Robot/C 380 | . 160 60 . 160 Destroy 0b10 Robot/NC 25 | 10 15 . . . Destroy Leader 84 | . 44 10 . 30 Allied During Kill 8 | . . 8 . . Disable Machine 15 | . . 15 . . Destroy Structure 29 | . . . . 29 Lose Combat Pursuer 15 | . 15 . . . Influence Decreases 556 | 10 203 124 . 219 Entered New Map 19 | . . 19 . . Time Decay 497 | 10 203 105 . 179 Lost Part 40 | . . . . 40 Squads Dispatched 1 | . 1 . . . Investigation . | . . . . . Extermination . | . . . . . Reinforcement 1 | . 1 . . . Assault . | . . . . . Garrison . | . . . . . Intercept . | . . . . . Searches Triggered . | . . . . . Construction Impeded . | . . . . . Haulers Reinforced . | . . . . . Active Scanning Responses . | . . . . . Cargo Convoy Interrupts . | . . . . . Stealth | -11 -10 -10 -10 -9 --------- Run | Yrd Mat Min Exi Min Distress Signals 1 | . 1 . . . Communications Jammed . | . . . . . Distress Signals . | . . . . . Times Spotted 25 | . 13 3 . 9 Peak Tracking Total 5 | . 5 3 . 5 Tactical Retreats 1 | . 1 . . . Traps | -11 -10 -10 -10 -9 ------- Run | Yrd Mat Min Exi Min Traps Triggered 4 | . 4 . . . Indirectly . | . . . . . Trap Hack Attempts . | . . . . . Triggered . | . . . . . Disarmed . | . . . . . Reprogrammed . | . . . . . Reused . | . . . . . Traps Extracted . | . . . . . Installed . | . . . . . Triggered . | . . . . . Machines | -11 -10 -10 -10 -9 ---------- Run | Yrd Mat Min Exi Min Machines Disabled 1 | . . 1 . . Max in Single Turn 1 | . . 1 . . Machines Repaired . | . . . . . Machines Dismantled . | . . . . . Machines Sabotaged . | . . . . . Overloaded Fab Kills . | . . . . . Hacking | -11 -10 -10 -10 -9 --------- Run | Yrd Mat Min Exi Min Machines Accessed 7 | . 6 . 1 . Terminals 6 | . 6 . . . Fabricators . | . . . . . Repair Stations . | . . . . . Recycling Units . | . . . . . Scanalyzers . | . . . . . Garrison Access . | . . . . . Total Hacks 12 | . 11 . 1 . Successful 6 | . 5 . 1 . Failed 6 | . 6 . . . Catastrophic . | . . . . . Database Lockouts . | . . . . . Manual 12 | . 12 . . . Terminals 11 | . 11 . . . Fabricators . | . . . . . Repair Stations . | . . . . . Recycling Units . | . . . . . Scanalyzers . | . . . . . Garrison Access . | . . . . . Terminal Hacks 1 | . . . 1 . Record 1 | . . . 1 . Fabricator Hacks . | . . . . . Repair Station Hacks . | . . . . . Recycling Unit Hacks . | . . . . . Scanalyzer . | . . . . . Garrison Access Hacks . | . . . . . Unauthorized Hacks 5 | . 5 . . . Terminals 5 | . 5 . . . Skim 5 | . 5 . . . Fabricators . | . . . . . Repair Stations . | . . . . . Recycling Units . | . . . . . Scanalyzers . | . . . . . Garrison Access . | . . . . . Data Cores Recovered . | . . . . . Used . | . . . . . Hacking Detections 5 | . 5 . . . Full Trace Events . | . . . . . Feedback Events . | . . . . . Feedback Blocked . | . . . . . Robot Schematics Acquired . | . . . . . Robots Built . | . . . . . Authchips . | . . . . . Time . | . . . . . Total Robot Build Rating . | . . . . . Part Schematics Acquired . | . . . . . Parts Built . | . . . . . Authchips . | . . . . . Time . | . . . . . Total Part Build Rating . | . . . . . Part Studies Acquired . | . . . . . Parts Repaired . | . . . . . Time . | . . . . . Parts Recycled . | . . . . . Recycled Matter . | . . . . . Retrieved Matter . | . . . . . Retrieved Components . | . . . . . Parts Scanalyzed . | . . . . . Part Schematics Acquired . | . . . . . Parts Damaged . | . . . . . Bothacking | -11 -10 -10 -10 -9 ------------ Run | Yrd Mat Min Exi Min Used RIF Installer . | . . . . . Robots Hacked . | . . . . . Non-combat . | . . . . . Combat . | . . . . . Robot Hacks Applied . | . . . . . Relay Couplers Released . | . . . . . Fabnet Peak Effective % . | . . . . . Robots Rewired . | . . . . . Allies Hacked . | . . . . . Hacks Repelled . | . . . . . Allies | -11 -10 -10 -10 -9 -------- Run | Yrd Mat Min Exi Min Total Allies 2 | . . 2 . . Largest Group 2 | . . 2 2 . Highest-Rated Group 48 | . . 48 48 . Highest-Rated Ally 31 | . . 31 31 . Total Orders . | . . . . . Ally Attacks 4 | . . 4 . . Total Damage 22 | . . 22 . . Kills . | . . . . . Allies Corrupted . | . . . . . Allies Melted . | . . . . . Intel | -11 -10 -10 -10 -9 ------- Run | Yrd Mat Min Exi Min Active Infowar (turns) 2040 | 19 854 631 470 66 Seismic 2040 | 19 854 631 470 66 Robot Analysis Total . | . . . . . Derelict Logs Recovered 4 | . . 2 . 2 Drone Launches . | . . . . . Drone Recoveries . | . . . . . Exploration | -11 -10 -10 -10 -9 ------------- Run | Yrd Mat Min Exi Min Turns Passed 2634 | 152 856 631 470 525 Spaces Moved 1662 | 79 450 376 286 471 Core 12 | 12 . . . . Treads 1265 | 67 450 376 286 86 Legs . | . . . . . Wheels 385 | . . . . 385 Hover . | . . . . . Flight . | . . . . . Fastest Speed 50 | 50 160 160 160 80 Average Speed 140 | 143 160 160 160 94 Slowest Speed 160 | 160 160 160 160 160 Overloaded Moves . | . . . . . Propulsion Burnouts . | . . . . . Robots Hopped . | . . . . . Potential Cave-ins . | . . . . . Cave-ins Triggered . | . . . . . Exploration Rate (%) 63 | 7 75 94 57 84 Regions Visited 4 Branch Regions 3 Pre-discovered Areas 3 | . 1 . 1 1 Known Exits Taken . | . . . . . Unknown Exits Taken 4 | 1 1 1 1 . Scrap Searched 6 | . . 3 . 3 Spaces Dug 17 | . . . . 17 Terrain Destroyed 32 | . . . . 32 Melee . | . . . . . Projectile . | . . . . . AOE 32 | . . . . 32 Terrain Rammed . | . . . . . Walls Destroyed . | . . . . . Machines Disabled . | . . . . . Actions | -11 -10 -10 -10 -9 --------- Run | Yrd Mat Min Exi Min Total 1846 | 104 533 395 299 515 Wait 63 | . 49 10 . 4 Move 1658 | 78 449 375 285 471 Hop . | . . . . . Pick Up 25 | 12 3 1 3 6 Fast Attach 6 | . 4 2 . . Attach 15 | 7 1 . 2 5 Detach 1 | . . . . 1 Swap 8 | . . 1 4 3 Drop 7 | . . 1 5 1 Fire 60 | 7 27 5 . 21 Melee 3 | . . . . 3 Ram . | . . . . . Kick . | . . . . . Crush . | . . . . . Escape Stasis . | . . . . . Rewire . | . . . . . Trap . | . . . . . Miscellaneous . | . . . . . Route ------- -11/Scrapyard -10/Materials (discovered 5 exits: *Mat x3 / [*Min] / Sub) -10/Mines (discovered 3 exits: *Mat x2 / *Exi) -10/Exiles -9/Mines (discovered 1 exit: [*Mat]) History --------- Turn | Location | Event 42 | -11/Scrapyard | Discovered new exit (range 14) 153 | -11/Scrapyard | Entered Materials 286 | -10/Materials | Discovered new exit (range 16) 307 | -10/Materials | Build established: Mutant 573 | -10/Materials | Discovered new exit (range 9) 797 | -10/Materials | Discovered new exit (range 4) 840 | -10/Materials | Identified exit to Materials 840 | -10/Materials | Identified exit to Subcaves 906 | -10/Materials | Learned location of 1 exit from Recycling 938 | -10/Materials | Learned location of Mines (-10) 949 | -10/Materials | Learned location of 2 exits from Subcaves 997 | -10/Materials | Learned location of 2 exits from Subcaves 1009 | -10/Materials | Entered Mines 1101 | -10/Mines | A weapon hastily lodged in a ceiling crevice suddenly fell to the ground 1355 | -10/Mines | Deemed a non-threat by the Exiles lab entrance 1355 | -10/Mines | Discovered new exit (range 5) 1523 | -10/Mines | Learned Materials stockpile data 1525 | -10/Mines | Found DCF Scrap (15 items) 1640 | -10/Mines | Entered Exiles 1640 | -10/Exiles | Accompanied by 2 allies 1670 | -10/Exiles | Led the pair of lost Derelicts to a safe place 1677 | -10/Exiles | Met 8R-AWN 1710 | -10/Exiles | Met EX-HEX 1782 | -10/Exiles | Learned location of Zion (-7) 1856 | -10/Exiles | Met EX-DEC 1989 | -10/Exiles | Discovered new exit (range 15) 2110 | -10/Exiles | Entered Mines 2111 | -9/Mines | Learned location of Storage (-7) 2142 | -9/Mines | Met a Derelict bent on vengeance 2206 | -9/Mines | Learned location of 1 exit from Materials 2302 | -9/Mines | Core integrity fell below 50% 2336 | -9/Mines | Lost 4 parts (1p2n1w) 2369 | -9/Mines | Found a damaged Exp. Sensor Array with a note attached 2371 | -9/Mines | Found Prototype Device 2388 | -9/Mines | Learned Materials emergency access door positions 2509 | -9/Mines | Discovered new exit (range 10) 2635 | -9/Mines | Self-destructed Last Messages --------------- squads over in the main complex, and they later decided the best way to defend their interests would be to start expanding in this direction." 02478_ Searching scrap... 02478_ Found Lrg. Storage Unit. 02478_ Found Hvy. EM Pulse Gun. 02478_ Found Hrd. Light Armor Plating. 02478_ Found 68 Matter. 02479_ Acquired 68 matter. 02480_ Acquired Lrg. Storage Unit. 02503_ System corrupted: Component data lost. 02509_ EXIT=FOUND 02520_ Searching scrap... 02520_ Found Med. Storage Unit. 02520_ Found Cooling System. 02520_ Found 36 Matter. 02521_ Acquired 36 matter. 02523_ Acquired Cooling System. 02525_ Dropped Imp. Heat Sink. 02536_ X=Y#<|WBNPX SDN FCCUN 9UGFBYZ 02573_ System corrupted: Heat flow error (+157). Map ----- +----------------------------------------------------+ | ???##########????##### #??# #???## = #???# | | ???# #????# #??# ##### * #???# | | ???# ###### #????# ### #??# ##### | | ??## ##???# #?#### #?# ########## | | ?## ##??# ### #?# ##?????#### [ ## | | ?# #??# ##### ##???????## ##### ### | | ?# ##?##### #?## #????????## ##???# ### | | ?# ####### ### #?????????####????# ## | | ?# ## #??????????????????# | | ?# """ ###??????????????????#### | | ?# """ ###### ###???????????????????????# | | ?# """ #????# #??????????????????????#### | | ## ###?## ## #####??????????????????# | | # ### ### #??????????????##### ### | | # ##?# ### #?????????????## ## ### | | ## ##### ### #?????????????# # | | ?# ######## ## #????????????## | | ?# ###??#### ## #????????##### | | ?# ##???## ### #???????## ## # | | ?# #?#### #####?# #???????# #### # | | ?## ### ##?###?#t#?###???# ##??## | | ??# ## ##?## ## ## ##??## #????# | | ??# ### #??# #???## ##????#### | | ?# #?## #??# ! #????# #????????? | | ?## ##??## ## #??# < ##???## #????????? | | ??###????###?# #??## @#####???## ##????????? | | ????## ##????# #???#### #??????## ##?????????? | | ????# #### [#??????# #????### ##?????????? | | ????# #??????# #????# #?????????? | | ????# ! #??????# ###### #?????????? | | ????# #### ##?????# #?????????? | | ????#####?### ##????# ######## ##????????? | | ?????????## ###??# #??????## #????????? | | ?????????# ####g#???????# #???####?# | | ?????????# ## #???????# ##??## ### | | ?????????## #?????## ##??## | | ??????????## ### #?????# #??## | | ???????????####?#### ## #?????# #??# | | ????????????????????####?#? #?????# ##?## # | | ??????????????????????????????????# #### ##### | | ??????????????????????????????????# ## ##???? | | ??????????????????????????????????## #????? | | ???????????????????????????????????## ##????? | | ????????????????????????????????????########?????? | | ?????????????????????????????????????????????????? | | ?????????????????????????????????????????????????? | | | | | | | | | +----------------------------------------------------+ Best States ------------- Heat Dissipation 47 Energy Generation 10 Energy Capacity 250 Matter Stores 300 Matter Capacity 300 Sight Range 16 Terrain Scan Density 10 Evasion (%) 50 Recoil Reduction 2 Item Schematics ----------------- None Robot Schematics ------------------ None Fabricated ------------ Nothing Repaired ---------- Nothing Studied --------- None Alien Tech Used ----------------- None Achievements -------------- None Challenges ------------ None Game ------ Seed ConcussivePitchforkJetlance Manual? 0 Play Time 00:13:30 Cumulative 487.9 hours Start 2025.11.11 @ 03:45:26 End 2025.11.11 @ 04:07:52 Sessions 1 Manual Loads 0 Difficulty Rogue Special Mode None Game No. 644 Rogue 644 Adventurer 0 Explorer 0 Win Type - Total 15 Types 7/0/2/2/1/0/2/1/0/0 Lore% 90 Gallery% 85 Achievement% 65 Wizard Run 0 Options --------- Layout 0 ASCII 0 Keyboard 0 Movement Mouse Keybinds 0 Fullscreen 1 Font 24/Terminus Map View 76x50 Zoom Use 0% Tactical HUD 1 Map Filters NONE Filters NONE Steam 1 RUN: 8fb3c90f-c518-47db-aa0e-a069735b0e36